fUST/lending_fUST_20240412
["ID","MTS","AMOUNT","RATE_DAILY","PERIOD"]
[322244254,1712911852578,-1638.08,0.00030958,7]
[322244256,1712911852587,-500.0,0.00030958,7]
[322244258,1712911852597,-893.523017,0.00030973,2]
[322244260,1712911852606,-823.519216,0.00030973,2]
[322244262,1712911852615,-306.0,0.00030986,2]
[322244264,1712911852625,-154.4409899,0.00030986,2]
[322244266,1712911852635,-160.0,0.00031081,14]
[322244268,1712911852646,-730.33,0.00031232,7]
[322244270,1712911852656,-920.82,0.00031232,7]
[322244272,1712911852665,-1422.85,0.00031232,2]
[322244274,1712911852675,-500.0,0.00031232,7]
[322244276,1712911852685,-558.6,0.00031232,7]
[322244277,1712911852695,-649.55253619,0.00031232,7]
[322244279,1712911852704,-566.89,0.00031232,7]
[322244281,1712911852714,-523.63974424,0.00031232,7]
[322244283,1712911852723,-1646.79,0.00031232,7]
[322244285,1712911852738,-500.0,0.00031232,7]
[322244287,1712911852748,-500.0,0.00031232,7]
[322244289,1712911852758,-1223.93,0.00031232,7]
[322244291,1712911852767,-867.99,0.00031232,7]
[322244293,1712911852777,-1164.51,0.00031232,7]
[322244295,1712911852787,-907.17,0.00031232,7]
[322244297,1712911852796,-1034.85,0.00031232,7]
[322244299,1712911852806,-520.62,0.00031232,7]
[322244301,1712911852815,-500.0,0.00031232,7]
[322244303,1712911852826,-972.6,0.00031232,7]
[322244305,1712911852836,-930.67,0.00031232,7]
[322244307,1712911852845,-1490.64,0.00031232,7]
[322244309,1712911852854,-12549.98,0.00031232,7]
[322244311,1712911852863,-2526.84,0.00031232,7]
[322244313,1712911852875,-500.0,0.00031232,7]
[322244315,1712911852886,-1001.48,0.00031232,7]
[322244317,1712911852895,-510.37,0.00031232,7]
[322244319,1712911852904,-1101.39,0.00031232,7]
[322244321,1712911852914,-1995.73,0.00031232,7]
[322244323,1712911852924,-5187.6,0.00031232,7]
[322244325,1712911852934,-690.87,0.00031232,7]
[322244327,1712911852943,-917.0,0.00031232,7]
[322244329,1712911852953,-4042.28,0.00031232,7]
[322244331,1712911852962,-1494.91,0.00031232,7]
[322244333,1712911852972,-11181.26,0.00031232,7]
[322244335,1712911852982,-2564.78,0.00031232,7]
[322244337,1712911852991,-1959.68,0.00031232,7]
[322244339,1712911853000,-1486.5,0.00031232,7]
[322244341,1712911853010,-1033.75,0.00031232,7]
[322244343,1712911853019,-1148.69,0.00031232,7]
[322244345,1712911853028,-1638.08,0.00031232,7]
[322244347,1712911853038,-500.0,0.00031232,7]
[322244349,1712911853047,-160.0,0.0003135,15]
[322244350,1712911853056,-505.61414717,0.000315,5]
[322244352,1712911853066,-2000.0,0.000315,2]
[322244354,1712911853075,-730.33,0.00031506,7]
[322244356,1712911853084,-920.82,0.00031506,7]
[322244358,1712911853093,-1422.85,0.00031506,2]
[322244360,1712911853104,-500.0,0.00031506,7]
[322244362,1712911853114,-558.6,0.00031506,7]
[322244364,1712911853123,-566.89,0.00031506,7]
[322244366,1712911853132,-1646.79,0.00031506,7]
[322244368,1712911853141,-384.10487508,0.00031506,7]
[322244369,1712911853151,-448.15174599,0.00031506,7]
[322244371,1712911853160,-1223.93,0.00031506,7]
[322244373,1712911853169,-867.99,0.00031506,7]
[322244375,1712911853179,-1164.51,0.00031506,7]
[322244377,1712911853189,-907.17,0.00031506,7]
[322244379,1712911853198,-1034.85,0.00031506,7]
[322244381,1712911853207,-520.62,0.00031506,7]
[322244383,1712911853217,-500.0,0.00031506,7]
[322244385,1712911853226,-972.6,0.00031506,7]
[322244387,1712911853237,-930.67,0.00031506,7]
[322244389,1712911853250,-1490.64,0.00031506,7]
[322244391,1712911853260,-12549.98,0.00031506,7]
[322244393,1712911853270,-2526.84,0.00031506,7]
[322244395,1712911853281,-500.0,0.00031506,7]
[322244397,1712911853290,-1001.48,0.00031506,7]
[322244399,1712911853299,-510.37,0.00031506,7]
[322244401,1712911853308,-1101.39,0.00031506,7]
[322244403,1712911853317,-1995.73,0.00031506,7]
[322244405,1712911853328,-5187.6,0.00031506,7]
[322244407,1712911853337,-690.87,0.00031506,7]
[322244409,1712911853347,-917.0,0.00031506,7]
[322244411,1712911853357,-4042.28,0.00031506,7]
[322244413,1712911853366,-1494.91,0.00031506,7]
[322244415,1712911853376,-11181.26,0.00031506,7]
[322244417,1712911853385,-2564.78,0.00031506,7]
[322244419,1712911853394,-1959.68,0.00031506,7]
[322244421,1712911853403,-1033.75,0.00031506,7]
[322244423,1712911853413,-1486.5,0.00031506,7]
[322244424,1712911853422,-1148.69,0.00031506,7]
[322244426,1712911853431,-1638.08,0.00031506,7]
[322244428,1712911853441,-500.0,0.00031506,7]
[322244430,1712911853451,-2000.0,0.0003151,2]
[322244432,1712911853459,-2000.0,0.0003152,2]
[322244434,1712911853468,-2000.0,0.0003153,2]
[322244436,1712911853479,-2000.0,0.0003154,2]
[322244438,1712911853488,-2000.0,0.0003155,2]
[322244440,1712911853498,-2000.0,0.0003156,2]
[322244442,1712911853507,-2000.0,0.0003157,2]
[322244444,1712911853516,-2000.0,0.0003158,2]
[322244446,1712911853526,-2000.0,0.0003159,2]
[322244448,1712911853535,-2000.0,0.000316,2]
[322244450,1712911853544,-2133.627844,0.0003161,2]
[322244452,1712911853553,-160.0,0.0003162,16]
[322244454,1712911853563,-588.05242996,0.0003177,4]
[322244456,1712911853572,-730.33,0.0003178,7]
[322244458,1712911853581,-920.82,0.0003178,7]
[322244460,1712911853590,-1422.85,0.0003178,2]
[322244462,1712911853600,-500.0,0.0003178,7]
[322244464,1712911853609,-558.6,0.0003178,7]
[322244466,1712911853618,-566.89,0.0003178,7]
[322244468,1712911853627,-1646.79,0.0003178,7]
[322244470,1712911853636,-1223.93,0.0003178,7]
[322244472,1712911853645,-867.99,0.0003178,7]
[322244474,1712911853654,-1164.51,0.0003178,7]
[322244476,1712911853663,-907.17,0.0003178,7]
[322244478,1712911853673,-1034.85,0.0003178,7]
[322244480,1712911853682,-520.62,0.0003178,7]
[322244481,1712911853691,-500.0,0.0003178,7]
[322244483,1712911853701,-972.6,0.0003178,7]
[322244485,1712911853710,-930.67,0.0003178,7]
[322244487,1712911853720,-1490.64,0.0003178,7]
[322244489,1712911853729,-12549.98,0.0003178,7]
[322244491,1712911853738,-2526.84,0.0003178,7]
[322244493,1712911853748,-500.0,0.0003178,7]
[322244501,1712911853817,-1001.48,0.0003178,7]
[322244503,1712911853827,-510.37,0.0003178,7]
[322244505,1712911853837,-1101.39,0.0003178,7]
[322244507,1712911853847,-1995.73,0.0003178,7]
[322244510,1712911853856,-5187.6,0.0003178,7]
[322244512,1712911853866,-690.87,0.0003178,7]
[322244513,1712911853875,-917.0,0.0003178,7]
[322244515,1712911853885,-4042.28,0.0003178,7]
[322244517,1712911853894,-1494.91,0.0003178,7]
[322244519,1712911853904,-11181.26,0.0003178,7]
[322244521,1712911853914,-2564.78,0.0003178,7]
[322244523,1712911853923,-1959.68,0.0003178,7]
[322244525,1712911853933,-1033.75,0.0003178,7]
[322244527,1712911853942,-1486.5,0.0003178,7]
[322244529,1712911853951,-1148.69,0.0003178,7]
[322244531,1712911853961,-1638.08,0.0003178,7]
[322244533,1712911853970,-500.0,0.0003178,7]
[322244535,1712911853980,-153.0,0.00031808,2]
[322244537,1712911853989,-160.0,0.0003189,17]
[322244539,1712911853999,-190.72501436,0.00032,4]
[322244541,1712911854009,-1210.78934384,0.00032,2]
[322244543,1712911854018,-1210.78934384,0.00032,2]
[322244545,1712911854030,-730.33,0.00032054,7]
[322244547,1712911854041,-920.82,0.00032054,7]
[322244549,1712911854050,-1422.85,0.00032054,2]
[322244551,1712911854059,-500.0,0.00032054,7]
[322244553,1712911854068,-558.6,0.00032054,7]
[322244555,1712911854077,-566.89,0.00032054,7]
[322244557,1712911854086,-1646.79,0.00032054,7]
[322244559,1712911854095,-1223.93,0.00032054,7]
[322244561,1712911854104,-867.99,0.00032054,7]
[322244563,1712911854113,-1164.51,0.00032054,7]
[322244565,1712911854123,-907.17,0.00032054,7]
[322244567,1712911854132,-1034.85,0.00032054,7]
[322244569,1712911854142,-520.62,0.00032054,7]
[322244571,1712911854152,-588.8229464,0.00032054,7]
[322244573,1712911854162,-972.6,0.00032054,7]
[322244575,1712911854172,-930.67,0.00032054,7]
[322244577,1712911854181,-1490.64,0.00032054,7]
[322244579,1712911854196,-12549.98,0.00032054,7]
[322244581,1712911854206,-2526.84,0.00032054,7]
[322244583,1712911854216,-500.0,0.00032054,7]
[322244585,1712911854226,-1001.48,0.00032054,7]
[322244587,1712911854236,-510.37,0.00032054,7]
[322244589,1712911854250,-1101.39,0.00032054,7]
[322244591,1712911854261,-1995.73,0.00032054,7]
[322244593,1712911854271,-5187.6,0.00032054,7]
[322244595,1712911854288,-690.87,0.00032054,7]
[322244597,1712911854297,-917.0,0.00032054,7]
[322244599,1712911854308,-4042.28,0.00032054,7]
[322244601,1712911854320,-1494.91,0.00032054,7]
[322244603,1712911854330,-11181.26,0.00032054,7]
[322244605,1712911854340,-2564.78,0.00032054,7]
[322244607,1712911854349,-1959.68,0.00032054,7]
[322244609,1712911854359,-1033.75,0.00032054,7]
[322244611,1712911854369,-1486.5,0.00032054,7]
[322244613,1712911854379,-1148.69,0.00032054,7]
[322244615,1712911854390,-1638.08,0.00032054,7]
[322244617,1712911854400,-500.0,0.00032054,7]
[322244619,1712911854411,-160.0,0.00032159,18]
[322244621,1712911854421,-329.0,0.00032306,35]
[322244624,1712911854432,-167602.5108,0.00032308,30]
[322244626,1712911854449,-329.0,0.00032316,35]
[322244629,1712911854466,-329.0,0.00032326,35]
[322244631,1712911854477,-730.33,0.00032328,7]
[322244634,1712911854493,-920.82,0.00032328,7]
[322244637,1712911854509,-1422.85,0.00032328,2]
[322244639,1712911854525,-500.0,0.00032328,7]
[322244641,1712911854540,-558.6,0.00032328,7]
[322244642,1712911854554,-566.89,0.00032328,7]
[322244643,1712911854567,-1646.79,0.00032328,7]
[322244644,1712911854581,-1223.93,0.00032328,7]
[322244645,1712911854596,-867.99,0.00032328,7]
[322244647,1712911854608,-1164.51,0.00032328,7]
[322244650,1712911854623,-907.17,0.00032328,7]
[322244652,1712911854636,-1034.85,0.00032328,7]
[322244654,1712911854650,-520.62,0.00032328,7]
[322244657,1712911854664,-972.6,0.00032328,7]
[322244659,1712911854677,-930.67,0.00032328,7]
[322244662,1712911854692,-1490.64,0.00032328,7]
[322244665,1712911854708,-12549.98,0.00032328,7]
[322244668,1712911854724,-2526.84,0.00032328,7]
[322244670,1712911854735,-500.0,0.00032328,7]
[322244672,1712911854746,-1001.48,0.00032328,7]
[322244674,1712911854759,-510.37,0.00032328,7]
[322244677,1712911854773,-1101.39,0.00032328,7]
[322244679,1712911854788,-1995.73,0.00032328,7]
[322244682,1712911854801,-5187.6,0.00032328,7]
[322244684,1712911854813,-690.87,0.00032328,7]
[322244686,1712911854823,-917.0,0.00032328,7]
[322244689,1712911854835,-4042.28,0.00032328,7]
[322244691,1712911854848,-1494.91,0.00032328,7]
[322244693,1712911854860,-11181.26,0.00032328,7]
[322244696,1712911854872,-2564.78,0.00032328,7]
[322244698,1712911854884,-1959.68,0.00032328,7]
[322244700,1712911854895,-1033.75,0.00032328,7]
[322244703,1712911854907,-1486.5,0.00032328,7]
[322244705,1712911854920,-1148.69,0.00032328,7]
[322244707,1712911854931,-1638.08,0.00032328,7]
[322244709,1712911854943,-500.0,0.00032328,7]
[322244712,1712911854956,-160.0,0.00032429,19]
[322244714,1712911854969,-150.5,0.00032572,35]
[322244716,1712911854981,-266.0,0.00032572,35]
[322244719,1712911854993,-3609.0,0.00032572,35]
[322244721,1712911855005,-150.5,0.00032582,35]
[322244723,1712911855017,-266.0,0.00032582,35]
[322244726,1712911855029,-3609.0,0.00032582,35]
[322244728,1712911855041,-150.5,0.00032592,35]
[322244730,1712911855053,-266.0,0.00032592,35]
[322244733,1712911855064,-3609.0,0.00032592,35]
[322244735,1712911855076,-730.33,0.00032602,7]
[322244737,1712911855089,-920.82,0.00032602,7]
[322244740,1712911855102,-1422.85,0.00032602,2]
[322244742,1712911855113,-500.0,0.00032602,7]
[322244744,1712911855126,-558.6,0.00032602,7]
[322244747,1712911855138,-566.89,0.00032602,7]
[322244749,1712911855150,-1646.79,0.00032602,7]
[322244751,1712911855162,-1223.93,0.00032602,7]
[322244753,1712911855175,-867.99,0.00032602,7]
[322244756,1712911855186,-1164.51,0.00032602,7]
[322244758,1712911855199,-907.17,0.00032602,7]
[322244760,1712911855212,-1034.85,0.00032602,7]
[322244762,1712911855225,-520.62,0.00032602,7]
[322244764,1712911855235,-972.6,0.00032602,7]
[322244767,1712911855248,-930.67,0.00032602,7]
[322244779,1712911855359,-1490.64,0.00032602,7]
[322244781,1712911855370,-12549.98,0.00032602,7]
[322244783,1712911855379,-2526.84,0.00032602,7]
[322244785,1712911855389,-500.0,0.00032602,7]
[322244787,1712911855398,-1001.48,0.00032602,7]
[322244789,1712911855407,-510.37,0.00032602,7]
[322244791,1712911855417,-1101.39,0.00032602,7]
[322244793,1712911855426,-1995.73,0.00032602,7]
[322244795,1712911855440,-5187.6,0.00032602,7]
[322244797,1712911855449,-690.87,0.00032602,7]
[322244799,1712911855458,-917.0,0.00032602,7]
[322244801,1712911855467,-4042.28,0.00032602,7]
[322244803,1712911855476,-1494.91,0.00032602,7]
[322244805,1712911855485,-11181.26,0.00032602,7]
[322244808,1712911855495,-2564.78,0.00032602,7]
[322244810,1712911855504,-1959.68,0.00032602,7]
[322244812,1712911855513,-1033.75,0.00032602,7]
[322244814,1712911855522,-1486.5,0.00032602,7]
[322244816,1712911855533,-1148.69,0.00032602,7]
[322244818,1712911855542,-1638.08,0.00032602,7]
[322244820,1712911855550,-500.0,0.00032602,7]
[322244821,1712911855559,-150.81901718,0.00032608,2]
[322244823,1712911855568,-160.0,0.00032699,20]
[322244825,1712911855577,-730.33,0.00032876,7]
[322244828,1712911855587,-500.0,0.00032876,2]
[322244830,1712911855596,-500.0,0.00032876,2]
[322244831,1712911855605,-500.0,0.00032876,2]
[322244833,1712911855614,-500.0,0.00032876,2]
[322244835,1712911855623,-500.0,0.00032876,2]
[322244837,1712911855632,-386.47948473,0.00032876,2]
[322244840,1712911855641,-920.82,0.00032876,7]
[322244841,1712911855651,-1422.85,0.00032876,2]
[322244843,1712911855660,-500.0,0.00032876,7]
[322244846,1712911855669,-558.6,0.00032876,7]
[322244847,1712911855678,-566.89,0.00032876,7]
[322244849,1712911855687,-1646.79,0.00032876,7]
[322244851,1712911855697,-1223.93,0.00032876,7]
[322244854,1712911855706,-867.99,0.00032876,7]
[322244856,1712911855716,-1164.51,0.00032876,7]
[322244858,1712911855725,-907.17,0.00032876,7]
[322244860,1712911855734,-1034.85,0.00032876,7]
[322244862,1712911855743,-520.62,0.00032876,7]
[322244864,1712911855752,-972.6,0.00032876,7]
[322244866,1712911855761,-930.67,0.00032876,7]
[322244868,1712911855770,-1490.64,0.00032876,7]
[322244869,1712911855779,-12549.98,0.00032876,7]
[322244871,1712911855788,-2526.84,0.00032876,7]
[322244873,1712911855798,-328.77093552,0.00032876,7]
[322244875,1712911855807,-1001.48,0.00032876,7]
[322244877,1712911855816,-510.37,0.00032876,7]
[322244879,1712911855825,-1101.39,0.00032876,7]
[322244881,1712911855834,-1995.73,0.00032876,7]
[322244883,1712911855844,-5187.6,0.00032876,7]
[322244885,1712911855853,-690.87,0.00032876,7]
[322244887,1712911855862,-917.0,0.00032876,7]
[322244889,1712911855871,-4042.28,0.00032876,7]
[322244891,1712911855880,-1494.91,0.00032876,7]
[322244893,1712911855890,-11181.26,0.00032876,7]
[322244896,1712911855899,-2564.78,0.00032876,7]
[322244898,1712911855909,-1959.68,0.00032876,7]
[322244900,1712911855918,-1033.75,0.00032876,7]
[322244902,1712911855927,-1486.5,0.00032876,7]
[322244904,1712911855936,-1148.69,0.00032876,7]
[322244906,1712911855945,-1638.08,0.00032876,7]
[322244908,1712911855955,-500.0,0.00032876,7]
[322244910,1712911855963,-1038.97,0.00032898,2]
[322244912,1712911855972,-1038.97,0.00032898,2]
[322244914,1712911855981,-1038.97,0.00032898,2]
[322244916,1712911855990,-1038.97,0.00032898,2]
[322244918,1712911855999,-1038.97,0.00032898,2]
[322244920,1712911856007,-1038.97,0.00032898,2]
[322244922,1712911856017,-1038.97,0.00032898,2]
[322244924,1712911856026,-1038.97,0.00032898,2]
[322244926,1712911856036,-1038.97,0.00032898,2]
[322244928,1712911856045,-1038.97,0.00032898,2]
[322244929,1712911856054,-160.0,0.00032969,21]
[322244931,1712911856063,-1383.48268926,0.00033,3]
[322244933,1712911856073,-276.0,0.00033,2]
[322244935,1712911856083,-587.0,0.00033148,2]
[322244937,1712911856092,-730.33,0.0003315,7]
[322244939,1712911856101,-920.82,0.0003315,7]
[322244941,1712911856110,-1422.85,0.0003315,2]
[322244943,1712911856119,-500.0,0.0003315,7]
[322244945,1712911856129,-558.6,0.0003315,7]
[322244947,1712911856139,-566.89,0.0003315,7]
[322244949,1712911856148,-1646.79,0.0003315,7]
[322244951,1712911856158,-1223.93,0.0003315,7]
[322244953,1712911856167,-867.99,0.0003315,7]
[322244955,1712911856176,-1164.51,0.0003315,7]
[322244957,1712911856185,-907.17,0.0003315,7]
[322244959,1712911856194,-1034.85,0.0003315,7]
[322244961,1712911856204,-520.62,0.0003315,7]
[322244963,1712911856213,-972.6,0.0003315,7]
[322244965,1712911856222,-930.67,0.0003315,7]
[322244967,1712911856232,-1490.64,0.0003315,7]
[322244969,1712911856241,-12549.98,0.0003315,7]
[322244971,1712911856251,-2526.84,0.0003315,7]
[322244973,1712911856260,-1001.48,0.0003315,7]
[322244975,1712911856270,-510.37,0.0003315,7]
[322244977,1712911856280,-1101.39,0.0003315,7]
[322244979,1712911856290,-1995.73,0.0003315,7]
[322244980,1712911856299,-5187.6,0.0003315,7]
[322244982,1712911856308,-690.87,0.0003315,7]
[322244984,1712911856318,-917.0,0.0003315,7]
[322244986,1712911856328,-4042.28,0.0003315,7]
[322244988,1712911856338,-1494.91,0.0003315,7]
[322244990,1712911856347,-11181.26,0.0003315,7]
[322244992,1712911856357,-2564.78,0.0003315,7]
[322244995,1712911856367,-1959.68,0.0003315,7]
[322244996,1712911856376,-1033.75,0.0003315,7]
[322244998,1712911856385,-1486.5,0.0003315,7]
[322245000,1712911856395,-1148.69,0.0003315,7]
[322245002,1712911856404,-1638.08,0.0003315,7]
[322245004,1712911856414,-202.22225193,0.0003315,7]
[322245006,1712911856423,-301.63803436,0.00033156,4]
[322245008,1712911856433,-153.0,0.00033233,2]
[322245010,1712911856442,-153.0,0.00033233,2]
[322245012,1712911856451,-153.0,0.00033233,2]
[322245014,1712911856460,-153.0,0.00033233,2]
[322245016,1712911856470,-153.0,0.00033233,2]
[322245018,1712911856479,-160.0,0.00033238,22]
[322245020,1712911856488,-730.33,0.00033424,7]
[322245022,1712911856497,-920.82,0.00033424,7]
[322245024,1712911856507,-1422.85,0.00033424,2]
[322245026,1712911856516,-332.38187541,0.00033424,7]
[322245028,1712911856525,-558.6,0.00033424,7]
[322245030,1712911856535,-566.89,0.00033424,7]
[322245032,1712911856544,-1646.79,0.00033424,7]
[322245034,1712911856554,-1223.93,0.00033424,7]
[322245036,1712911856563,-867.99,0.00033424,7]
[322245038,1712911856572,-1164.51,0.00033424,7]
[322245040,1712911856581,-907.17,0.00033424,7]
[322245042,1712911856590,-1034.85,0.00033424,7]
[322245044,1712911856599,-520.62,0.00033424,7]
[322245046,1712911856610,-972.6,0.00033424,7]
[322245048,1712911856619,-930.67,0.00033424,7]
[322245050,1712911856628,-1490.64,0.00033424,7]
[322245052,1712911856638,-12549.98,0.00033424,7]
[322245054,1712911856647,-2526.84,0.00033424,7]
[322245056,1712911856656,-1001.48,0.00033424,7]
[322245058,1712911856664,-510.37,0.00033424,7]
[322245060,1712911856674,-1101.39,0.00033424,7]
[322245062,1712911856682,-1995.73,0.00033424,7]
[322245064,1712911856691,-5187.6,0.00033424,7]
[322245066,1712911856700,-690.87,0.00033424,7]
[322245068,1712911856709,-917.0,0.00033424,7]
[322245070,1712911856718,-4042.28,0.00033424,7]
[322245071,1712911856728,-1494.91,0.00033424,7]
[322245073,1712911856737,-11181.26,0.00033424,7]
[322245075,1712911856746,-2564.78,0.00033424,7]
[322245077,1712911856756,-1959.68,0.00033424,7]
[322245079,1712911856765,-1033.75,0.00033424,7]
[322245081,1712911856775,-1486.5,0.00033424,7]
[322245083,1712911856784,-1148.69,0.00033424,7]
[322245085,1712911856793,-1638.08,0.00033424,7]
[322245087,1712911856802,-160.0,0.00033508,23]
[322245089,1712911856811,-251.11,0.00033668,35]
[322245091,1712911856820,-275.4,0.00033668,35]
[322245093,1712911856830,-150.5,0.00033678,35]
[322245095,1712911856839,-150.5,0.00033678,35]
[322245097,1712911856848,-150.5,0.00033688,35]
[322245099,1712911856858,-150.5,0.00033688,35]
[322245101,1712911856867,-730.47869596,0.00033698,7]
[322245103,1712911856876,-921.01723364,0.00033698,7]
[322245105,1712911856885,-1422.8932583,0.00033698,2]
[322245107,1712911856894,-558.83029902,0.00033698,7]
[322245109,1712911856904,-567.01764036,0.00033698,7]
[322245111,1712911856913,-1646.95909723,0.00033698,7]
[322245113,1712911856922,-1224.00847836,0.00033698,7]
[322245115,1712911856931,-868.15339899,0.00033698,7]
[322245117,1712911856941,-1164.62755347,0.00033698,7]
[322245119,1712911856950,-907.19632034,0.00033698,7]
[322245121,1712911856959,-1035.03693108,0.00033698,7]
[322245123,1712911856968,-520.70204396,0.00033698,7]
[322245125,1712911856978,-972.61331379,0.00033698,7]
[322245127,1712911856987,-930.71606019,0.00033698,7]
[322245129,1712911856996,-1490.77222686,0.00033698,7]
[322245131,1712911857005,-12550.15077589,0.00033698,7]
[322245133,1712911857014,-2526.93471827,0.00033698,7]
[322245135,1712911857023,-1001.62018617,0.00033698,7]
[322245137,1712911857033,-510.40093513,0.00033698,7]
[322245139,1712911857043,-1101.5812814,0.00033698,7]
[322245141,1712911857052,-1995.75730762,0.00033698,7]
[322245143,1712911857061,-5187.65619279,0.00033698,7]
[322245145,1712911857070,-690.91057078,0.00033698,7]
[322245147,1712911857079,-917.21,0.00033698,7]
[322245148,1712911857088,-4042.44521512,0.00033698,7]
[322245150,1712911857098,-1495.12114589,0.00033698,7]
[322245152,1712911857109,-11181.28566845,0.00033698,7]
[322245162,1712911857189,-2564.9691109,0.00033698,7]
[322245164,1712911857201,-1959.80699079,0.00033698,7]
[322245166,1712911857210,-1033.77042791,0.00033698,7]
[322245168,1712911857219,-1486.54104007,0.00033698,7]
[322245169,1712911857228,-1148.8081513,0.00033698,7]
[322245171,1712911857240,-1638.16052378,0.00033698,7]
[322245173,1712911857251,-603.27606872,0.00033713,7]
[322245175,1712911857261,-505.39840542,0.00033755,6]
[322245177,1712911857270,-160.0,0.00033778,24]
[322245180,1712911857282,-209.77802635,0.00033778,5]
[322245181,1712911857291,-153.0,0.00033781,2]
[322245183,1712911857302,-153.0,0.00033781,2]
[322245185,1712911857312,-153.0,0.00033781,2]
[322245188,1712911857324,-153.0,0.00033781,2]
[322245189,1712911857333,-153.0,0.00033781,2]
[322245191,1712911857342,-153.0,0.00033781,2]
[322245193,1712911857351,-1210.78934384,0.0003392,2]
[322245195,1712911857361,-1210.78934384,0.0003392,2]
[322245197,1712911857371,-464.87522551,0.00034,4]
[322245199,1712911857380,-400.0,0.00034,3]
[322245201,1712911857389,-153.0,0.00034247,2]
[322245203,1712911857398,-19320.9834,0.00034308,30]
[322245205,1712911857408,-1206.55213744,0.00034567,30]
[322245207,1712911857417,-200.0,0.00034678,120]
[322245210,1712911857440,-155.19682144,0.00035,4]
[322245212,1712911857451,-351.1032578,0.00035,30]
[322245215,1712911857461,-596.36211063,0.00035,2]
[322245217,1712911857471,-6859.42485602,0.00035,4]
[322245219,1712911857481,-6000.0,0.00035,30]
[322245221,1712911857491,-26578.44290471,0.00035,7]
[322245223,1712911857502,-1000.0,0.00035,2]
[322245225,1712911857512,-1814.74858133,0.00035,2]
[322245227,1712911857522,-669.10203133,0.00035,4]
[322245229,1712911857533,-186.05603541,0.00035,30]
[322245231,1712911857543,-202.57348486,0.00035,30]
[322245233,1712911857553,-236.6715924,0.00035,120]
[322245235,1712911857562,-154.86062544,0.00035,7]
[322245237,1712911857572,-400.0045007,0.00035,2]
[322245239,1712911857581,-153.0,0.00035068,2]
[322245241,1712911857591,-200.0,0.00035075,120]
[322245243,1712911857601,-200.0,0.00035359,120]
[322245245,1712911857611,-201.17451226,0.00035614,4]
[322245247,1712911857620,-406.71490912,0.00035614,4]
[322245249,1712911857630,-155.10304485,0.00035614,4]
[322245251,1712911857639,-245.59351282,0.00035614,4]
[322245253,1712911857649,-276.01323313,0.00035614,4]
[322245255,1712911857659,-500.0,0.00035616,7]
[322245257,1712911857668,-532.91078156,0.00035616,7]
[322245259,1712911857679,-500.0,0.00035616,7]
[322245261,1712911857688,-6250.0,0.00035616,120]
[322245263,1712911857698,-52445.1834193,0.00035616,2]
[322245265,1712911857707,-1331.86827823,0.0003584,6]
[322245267,1712911857717,-1331.86827823,0.0003584,6]
[322245269,1712911857726,-155.44771079,0.00035888,4]
[322245271,1712911857736,-154.9690062,0.0003589,2]
[322245273,1712911857745,-150.5,0.0003591,35]
[322245275,1712911857755,-266.0,0.0003591,35]
[322245277,1712911857764,-3609.0,0.0003591,35]
[322245279,1712911857774,-150.5,0.0003592,35]
[322245281,1712911857784,-266.0,0.0003592,35]
[322245283,1712911857793,-3609.0,0.0003592,35]
[322245285,1712911857802,-150.5,0.0003593,35]
[322245287,1712911857812,-266.0,0.0003593,35]